bitfinex/quotes_SOLUSD_20240603
["timestamp","ask_amount","ask_price","bid_price","bid_amount"]
[1717422927438,2.2185,166.78,166.72,0.34]
[1717422927622,2.2182,166.8,166.72,2.3891]
[1717422927823,2.2182,166.8,166.73,0.17]
[1717422928040,2.2183,166.79,166.73,0.17]
[1717422928407,2.2182,166.8,166.72,2.5592]
[1717422928724,2.2185,166.78,166.72,0.34]
[1717422928916,2.2185,166.78,166.71,2.5593]
[1717422929116,6.6535,166.83,166.71,2.5593]
[1717422929117,4.435,166.86,166.74,15.0863]
[1717422929346,2.2181,166.81,166.75,0.34]
[1717422930036,2.2179,166.83,166.76,2.2187]
[1717422930262,2.218,166.82,166.75,2.5588]
[1717422930756,2.2181,166.81,166.75,0.34]
[1717422930950,2.2182,166.8,166.75,0.34]
[1717422931248,2.2183,166.79,166.77,6.6464]
[1717422931457,2.2183,166.79,166.75,6.6464]
[1717422931987,6.653,166.85,166.75,6.6464]
[1717422932135,2.2186,166.77,166.71,22.4981]
[1717422933060,2.2185,166.78,166.71,22.4981]
[1717422933246,2.2183,166.79,166.72,2.3892]
[1717422933552,2.2185,166.78,166.72,0.17]
[1717422933757,2.2183,166.79,166.72,0.34]
[1717422934142,2.2183,166.79,166.72,2.5592]
[1717422934345,6.6531,166.84,166.73,2.2191]
[1717422934346,2.2182,166.8,166.73,2.2191]
[1717422934549,22.1755,166.86,166.75,6.1127]
[1717422934550,13.3058,166.86,166.75,6.1127]
[1717422934855,13.3058,166.86,166.76,0.34]
[1717422935052,2.218,166.82,166.76,0.34]
[1717422935437,2.2181,166.81,166.76,0.34]
[1717422935856,2.2181,166.81,166.78,6.1127]
[1717422936041,2.2181,166.81,166.79,6.1127]
[1717422936255,17.7409,166.86,166.79,6.1127]
[1717422936558,2.2177,166.84,166.79,6.1127]
[1717422936755,2.2177,166.84,166.76,18.2784]
[1717422936943,2.2177,166.84,166.77,8.8103]
[1717422937642,2.2175,166.85,166.78,2.2184]
[1717422937856,2.2175,166.85,166.79,0.34]
[1717422938139,2.2174,166.86,166.79,0.34]
[1717422938353,2.2174,166.86,166.79,2.5583]
[1717422938740,2.2174,166.86,166.79,0.34]
[1717422939266,8.8665,166.93,166.79,0.34]
[1717422939267,2.2171,166.89,166.79,0.34]
[1717422939446,2.2171,166.89,166.77,26.9918]
[1717422939447,2.2171,166.89,166.81,2.218]
[1717422939768,13.2996,166.93,166.82,2.5579]
[1717422939961,2.217,166.89,166.82,0.34]
[1717422940142,2.217,166.89,166.83,0.17]
[1717422940460,2.217,166.89,166.82,0.17]
[1717422940662,2.2168,166.91,166.83,6.2807]
[1717422940852,2.2168,166.91,166.84,1.56333574]
[1717422941480,19.9487,166.98,166.85,15.5062]
[1717422941637,2.2163,166.95,166.87,2.2172]
[1717422941837,2.2163,166.94,166.88,0.34]
[1717422942033,19.9487,167.01,166.86,0.17]
[1717422942248,19.9487,167.01,166.86,0.34]
[1717422942448,4.432,166.97,166.86,0.34]
[1717422942765,4.432,166.97,166.86,2.5573]
[1717422943059,2.2162,166.96,166.87,2.2172]
[1717422943253,4.4312,167.0,166.88,0.34]
[1717422944060,2.2165,166.93,166.88,0.34]
[1717422944339,2.2165,166.93,166.9,6.3983]
[1717422944762,2.2166,166.92,166.9,6.3983]
[1717422945064,2.2166,166.92,166.87,6.575]
[1717422945277,2.2166,166.92,166.87,6.405]
[1717422945575,4.4328,166.94,166.87,6.235]
[1717422945890,2.217,166.9,166.83,6.235]
[1717422946181,4.4328,166.94,166.83,6.235]
[1717422946681,4.4321,166.97,166.85,2.2175]
[1717422947063,2.2165,166.93,166.86,0.34]
[1717422947270,4.4321,166.97,166.86,0.34]
[1717422947779,2.2166,166.92,166.86,0.34]
[1717422947959,2.2166,166.92,166.85,0.34]
[1717422948157,4.4322,166.96,166.85,2.5575]
[1717422948356,2.2166,166.93,166.86,0.17]
[1717422948579,2.2163,166.95,166.87,2.2172]
[1717422948778,2.2164,166.94,166.88,0.34]
[1717422949098,2.2165,166.93,166.88,0.34]
[1717422949280,2.2165,166.93,166.89,6.1816]
[1717422949878,2.2164,166.94,166.88,6.3457]
[1717422950190,2.2164,166.94,166.9,6.3457]
[1717422950416,2.2165,166.93,166.9,6.3457]
[1717422950692,2.2163,166.94,166.9,6.3457]
[1717422950981,2.2165,166.93,166.86,6.2384]
[1717422951167,4.4319,166.97,166.87,0.34]
[1717422951565,6.6478,166.98,166.87,0.34]
[1717422951757,4.4322,166.96,166.87,0.34]
[1717422951958,4.4322,166.96,166.87,0.17]
[1717422952155,4.4325,166.95,166.86,6.2384]
[1717422953274,6.6484,166.96,166.86,6.2384]
[1717422953275,2.2166,166.92,166.86,6.2384]
[1717422953781,2.2166,166.92,166.87,0.17]
[1717422954077,2.2163,166.95,166.87,6.4743]
[1717422954384,2.2162,166.95,166.88,18.6178]
[1717422954584,2.2164,166.94,166.89,0.34]
[1717422954788,2.2164,166.94,166.9,6.2023]
[1717422955158,2.2164,166.94,166.89,16.5885]
[1717422955359,4.4316,166.98,166.91,6.1473]
[1717422955586,4.4319,166.97,166.89,0.34]
[1717422955771,4.4319,166.97,166.88,0.34]
[1717422956279,2.2165,166.93,166.88,0.34]
[1717422956504,2.2165,166.93,166.88,6.0476]
[1717422956691,2.2165,166.93,166.87,6.3876]
[1717422956995,2.2164,166.94,166.87,8.6048]
[1717422958063,4.4319,166.97,166.87,6.3876]
[1717422958599,2.2166,166.92,166.87,6.3876]
[1717422959188,2.2168,166.91,166.87,6.0476]
[1717422959401,2.2168,166.91,166.84,2.2176]
[1717422960194,2.2168,166.91,166.85,2.2175]
[1717422960387,2.2168,166.91,166.84,2.2176]
[1717422960584,2.2168,166.91,166.85,0.34]
[1717422961482,2.2169,166.9,166.83,2.2178]
[1717422961674,2.2167,166.92,166.81,22.4478]
[1717422961990,2.2167,166.91,166.84,2.2176]
[1717422962896,2.2167,166.91,166.85,0.17]
[1717422963079,2.2171,166.88,166.81,24.6657]
[1717422963280,2.2173,166.87,166.81,6.0576]
[1717422963785,50.9135,166.96,166.81,6.0576]
[1717422964014,2.2175,166.86,166.79,2.2183]
[1717422964203,4.434,166.89,166.77,25.1088]
[1717422964493,4.434,166.89,166.73,8.6847]
[1717422964494,2.2182,166.8,166.73,8.6847]
[1717422964797,2.2182,166.8,166.73,6.4656]
[1717422965000,2.2183,166.8,166.73,6.4656]
[1717422965168,2.2185,166.78,166.73,6.4656]
[1717422965372,4.4356,166.83,166.73,6.4656]
[1717422965769,2.2183,166.79,166.73,6.4656]
[1717422966103,2.2182,166.8,166.73,8.6847]
[1717422966397,11.0865,166.87,166.74,2.2189]
[1717422966703,0.34,166.86,166.74,2.2189]
[1717422966888,2.2182,166.8,166.73,6.4656]
[1717422967073,2.2182,166.8,166.74,0.34]
[1717422967488,2.2183,166.79,166.74,0.34]
[1717422967684,4.4353,166.84,166.74,0.17]
[1717422967884,2.2186,166.77,166.69,6.5041]
[1717422968089,2.2186,166.77,166.69,8.7237]
[1717422968294,2.2184,166.79,166.7,2.2195]
[1717422968489,2.2185,166.78,166.69,6.5041]
[1717422968675,4.4359,166.82,166.7,2.2195]
[1717422968877,2.2185,166.78,166.7,2.2195]
[1717422969076,2.2183,166.79,166.71,2.2194]
[1717422969276,2.2185,166.78,166.7,2.2195]
[1717422969686,4.4357,166.83,166.71,0.17]
[1717422969687,2.2186,166.77,166.71,0.17]
[1717422969877,2.2186,166.77,166.69,8.8937]
[1717422970082,2.2186,166.77,166.7,0.17]
[1717422970474,2.2186,166.77,166.7,2.3895]
[1717422970701,4.4364,166.8,166.67,20.0]
[1717422970872,2.2186,166.77,166.7,2.2195]
[1717422971078,2.2187,166.77,166.69,2.2196]
[1717422971386,4.4362,166.81,166.69,2.2196]
[1717422971589,2.2187,166.77,166.7,2.2195]
[1717422971894,4.4362,166.81,166.7,2.2195]
[1717422971895,2.2185,166.78,166.7,2.2195]
[1717422972199,2.2185,166.78,166.71,0.34]
[1717422972400,12.9955,166.84,166.71,0.34]
[1717422972586,10.7779,166.84,166.71,0.34]
[1717422972896,10.7779,166.84,166.72,2.2192]
[1717422973096,2.2184,166.79,166.73,0.34]
[1717422973302,2.2184,166.79,166.71,2.5594]
[1717422973493,2.2184,166.79,166.72,2.2192]
[1717422973799,4.435,166.86,166.74,6.604]
[1717422974004,2.218,166.82,166.75,2.5588]
[1717422974210,2.2178,166.84,166.76,2.2187]
[1717422974390,4.4346,166.87,166.77,0.34]
[1717422974708,2.2183,166.8,166.75,0.17]
[1717422975005,2.218,166.82,166.77,22.0017]
[1717422975203,2.218,166.82,166.78,6.6084]
[1717422975415,2.2176,166.85,166.78,6.6084]
[1717422975600,4.4345,166.88,166.78,6.6084]
[1717422975601,2.2177,166.84,166.78,6.6084]
[1717422975806,2.218,166.82,166.76,0.17]
[1717422975986,2.218,166.82,166.75,0.17]
[1717422975987,2.2181,166.81,166.75,6.4483]
[1717422976187,4.4348,166.86,166.75,6.4483]
[1717422976188,2.2179,166.82,166.75,6.4483]
[1717422976487,2.2183,166.8,166.75,6.4483]
[1717422976687,8.8701,166.86,166.75,0.34]
[1717422976914,2.218,166.81,166.75,0.34]
[1717422977089,2.2182,166.8,166.75,0.34]
[1717422977289,2.2178,166.83,166.75,2.2188]
[1717422977483,8.868,166.9,166.74,6.5045]
[1717422977484,6.652,166.87,166.76,0.34]
[1717422977703,4.4357,166.83,166.74,6.1645]
[1717422977921,2.2186,166.78,166.74,6.1645]
[1717422978213,2.2184,166.78,166.68,15.4492]
[1717422978387,2.2187,166.77,166.69,8.6817]
[1717422978589,4.4362,166.81,166.69,8.6817]
[1717422978787,4.4364,166.8,166.69,8.6818]
[1717422979027,17.7428,166.83,166.71,2.2193]
[1717422979395,4.4361,166.82,166.69,6.4622]
[1717422979593,2.2184,166.78,166.7,2.2194]
[1717422979982,2.2183,166.79,166.71,2.2193]
[1717422980189,2.2185,166.78,166.72,0.17]
[1717422980407,2.2188,166.76,166.69,6.6322]
[1717422980586,2.2186,166.77,166.7,0.17]
[1717422981692,4.4365,166.8,166.7,0.34]
[1717422981693,2.2187,166.76,166.7,0.34]
[1717422982695,4.4365,166.8,166.69,6.4622]
[1717422982903,2.2188,166.76,166.69,6.4622]
[1717422983096,4.4365,166.8,166.69,6.4622]
[1717422983412,2.2187,166.77,166.69,8.6818]
[1717422983620,2.2187,166.76,166.69,8.6818]
[1717422983813,2.2189,166.75,166.69,6.4622]
[1717422984005,2.2188,166.76,166.69,6.4622]
[1717422984205,2.2188,166.76,166.69,8.6818]
[1717422984511,2.2192,166.73,166.65,24.5407]
[1717422984708,8.8747,166.77,166.65,6.1284]
[1717422985007,2.2194,166.71,166.65,6.1284]
[1717422985209,4.4377,166.75,166.65,6.1284]
[1717422985426,2.2195,166.71,166.65,6.1284]
[1717422985605,4.4382,166.74,166.62,2.2205]
[1717422985792,2.2196,166.7,166.61,22.4024]
[1717422986114,4.4385,166.73,166.61,22.4024]
[1717422986309,2.2197,166.69,166.61,24.6231]
[1717422986501,2.2202,166.66,166.6,6.0057]
[1717422986816,2.2199,166.67,166.6,6.0057]
[1717422987518,2.2201,166.66,166.6,6.0057]
[1717422988102,4.4388,166.71,166.6,6.0057]
[1717422988103,2.2199,166.67,166.6,8.2265]
[1717422988417,2.2199,166.67,166.6,6.0057]
[1717422988795,2.2199,166.67,166.6,8.2265]
[1717422989206,2.2198,166.68,166.6,8.2265]
[1717422989402,10.9489,166.74,166.62,2.2206]
[1717422989818,2.2198,166.68,166.61,0.34]
[1717422990126,4.4387,166.72,166.61,0.34]
[1717422990420,2.2199,166.68,166.6,8.3965]
[1717422990722,2.2199,166.68,166.61,0.34]
[1717422991309,2.2199,166.68,166.61,2.5607]
[1717422991622,2.2196,166.69,166.61,2.5607]
[1717422991921,2.2198,166.68,166.61,0.17]
[1717422992223,2.2197,166.69,166.61,2.3907]
[1717422992906,2.2198,166.68,166.61,2.3907]
[1717422993110,2.2198,166.68,166.61,0.17]
[1717422993307,4.4386,166.72,166.6,8.3965]
[1717422993513,2.2198,166.68,166.61,0.34]
[1717422994824,2.2199,166.67,166.61,0.34]
[1717422995001,2.2198,166.68,166.61,0.34]
[1717422995409,2.2199,166.67,166.6,8.2265]
[1717422995809,2.2199,166.67,166.6,6.0057]
[1717422996119,2.2198,166.68,166.6,8.2265]
[1717422996297,2.2197,166.69,166.61,2.2207]
[1717422996622,2.2195,166.7,166.62,2.2205]
[1717422996824,2.2195,166.7,166.62,2.3905]
[1717422997203,2.2193,166.72,166.63,2.3904]
[1717422997408,2.2191,166.73,166.64,2.2203]
[1717422997606,2.2191,166.73,166.63,0.17]
[1717422997607,2.2191,166.73,166.65,2.2201]
[1717422997805,2.219,166.74,166.66,2.22]
[1717422998427,2.219,166.74,166.65,2.2201]
[1717422998610,2.219,166.74,166.66,2.56]
[1717422998812,2.219,166.74,166.66,0.17]
[1717422999212,10.7276,166.78,166.67,8.6568]
[1717422999213,2.2189,166.75,166.67,8.6568]
[1717422999601,2.219,166.74,166.67,6.4369]
[1717422999826,4.437,166.78,166.67,6.4369]
[1717423000125,2.219,166.74,166.67,6.4369]
[1717423000634,2.2188,166.76,166.67,8.6568]
[1717423000928,0.34,166.79,166.67,8.6568]
[1717423001424,2.219,166.75,166.67,6.4369]
[1717423001836,2.219,166.75,166.68,0.17]
[1717423001837,2.2188,166.75,166.68,0.17]
[1717423002024,2.2188,166.75,166.68,0.34]
[1717423002328,2.2187,166.76,166.68,45.34]
[1717423002542,2.2187,166.76,166.68,47.5597]
[1717423002908,2.2194,166.72,166.66,6.1051]
[1717423003213,2.2194,166.71,166.63,15.4663]
[1717423003418,2.2197,166.69,166.63,21.5083]
[1717423004624,2.2195,166.71,166.64,45.0]
[1717423005410,2.2195,166.7,166.64,45.0]
[1717423006022,2.2197,166.69,166.64,51.6214]
[1717423006844,2.2198,166.68,166.6,6.6214]
[1717423007322,2.2198,166.68,166.6,8.8421]
[1717423008327,2.2197,166.69,166.61,47.2207]
[1717423008522,2.2198,166.68,166.61,45.0]
[1717423009054,4.4387,166.72,166.61,45.0]
[1717423009345,2.2197,166.69,166.6,6.6214]
[1717423009646,2.2197,166.69,166.61,2.2207]
[1717423009844,2.2198,166.68,166.6,8.8422]
[1717423010540,2.2197,166.69,166.61,47.2207]
[1717423010744,2.2198,166.68,166.61,47.2207]
[1717423010923,4.4383,166.73,166.61,47.2207]
[1717423010924,2.2197,166.69,166.61,47.2207]
[1717423011120,2.2198,166.68,166.61,45.0]
[1717423012852,2.2197,166.69,166.61,47.2207]
[1717423013743,2.2195,166.7,166.62,2.2205]
[1717423014049,4.4383,166.73,166.61,47.2207]
[1717423014050,2.2196,166.69,166.61,47.2207]
[1717423014344,2.2198,166.68,166.61,47.2207]
[1717423014532,2.2197,166.69,166.61,47.2207]
[1717423015624,2.2198,166.68,166.61,47.2207]
[1717423016125,2.2197,166.69,166.61,47.2207]
[1717423018541,2.2195,166.71,166.61,45.0]
[1717423018750,2.2195,166.71,166.63,2.2204]
[1717423019044,2.2195,166.71,166.64,0.34]
[1717423019230,2.2195,166.71,166.64,0.17]
[1717423019424,2.2196,166.7,166.62,2.2205]
[1717423019626,2.2196,166.69,166.63,0.34]
[1717423020244,2.2194,166.71,166.63,2.2204]
[1717423020659,2.2195,166.7,166.62,2.3905]
[1717423020845,6.6575,166.73,166.61,45.0]
[1717423021051,2.2198,166.68,166.61,45.0]
[1717423021247,2.2199,166.67,166.61,45.0]
[1717423021553,6.658,166.72,166.61,45.0]
[1717423021554,2.2198,166.68,166.61,45.0]
[1717423021745,2.2199,166.67,166.61,45.0]
[1717423022062,2.2197,166.69,166.61,47.2207]
[1717423022358,2.2197,166.69,166.62,2.2206]
[1717423023260,5.24580291,166.74,166.63,2.3904]
[1717423023261,2.2195,166.7,166.63,2.3904]
[1717423023449,2.2196,166.69,166.63,0.17]
[1717423023834,2.2198,166.68,166.61,45.0]
[1717423025355,4.4385,166.72,166.61,47.2206]
[1717423025356,2.2197,166.69,166.61,47.2206]
[1717423025546,2.2196,166.69,166.62,2.2205]
[1717423025745,2.2196,166.69,166.61,47.2207]
[1717423025947,2.2198,166.68,166.61,47.2207]
[1717423026743,6.6572,166.72,166.6,6.6214]
[1717423026944,2.2206,166.62,166.6,6.6214]
[1717423027145,4.4401,166.67,166.6,6.6214]
[1717423027146,2.2205,166.63,166.6,6.6214]
[1717423027358,2.2203,166.64,166.6,6.6214]
[1717423027865,2.2202,166.65,166.6,6.6214]
[1717423028176,2.2202,166.65,166.59,0.8174646]
[1717423028375,2.22,166.67,166.59,0.8174646]
[1717423028974,2.2203,166.64,166.59,0.8174646]
[1717423029143,2.2203,166.64,166.59,7.0962646]
[1717423029564,2.2202,166.66,166.59,7.0962646]
[1717423030081,2.2202,166.65,166.59,7.0962646]
[1717423030257,0.17,166.66,166.59,0.8174646]
[1717423030457,2.2208,166.6,166.59,0.8174646]
[1717423031456,8.8805,166.66,166.59,0.8174646]
[1717423031653,0.17,166.65,166.59,0.8174646]
[1717423031851,2.2207,166.61,166.59,0.8174646]
[1717423032671,2.2208,166.6,166.59,0.8174646]
[1717423033551,2.2207,166.61,166.59,0.8174646]
[1717423033956,2.2205,166.63,166.59,0.8174646]
[1717423034161,2.2203,166.65,166.59,6.9947646]
[1717423034551,10.28474756,166.67,166.59,6.9947646]
[1717423034751,2.2204,166.64,166.59,6.9947646]
[1717423034961,2.2205,166.63,166.59,6.9947646]
[1717423035158,2.2203,166.64,166.59,6.9947646]
[1717423035375,2.2203,166.64,166.6,6.5509]
[1717423035574,2.2205,166.63,166.59,0.8174646]
[1717423035880,2.2206,166.62,166.59,0.8174646]
[1717423036082,2.2207,166.61,166.59,0.8174646]
[1717423036253,2.2208,166.6,166.59,0.8174646]
[1717423038280,2.2207,166.61,166.59,0.8174646]
[1717423040064,15.541,166.66,166.59,0.8174646]
[1717423040065,2.2208,166.6,166.59,0.8174646]
[1717423041865,24.4013,166.6,166.59,0.8174646]
[1717423042175,28.843,166.6,166.59,0.8174646]
[1717423042481,13.192,166.6,166.59,0.8174646]
[1717423042677,6.6625,166.6,166.59,0.8174646]
[1717423043270,2.2208,166.6,166.59,0.8174646]
[1717423043766,0.17,166.64,166.59,0.8174646]
[1717423043971,4.7807,166.64,166.59,0.8174646]
[1717423044367,2.2208,166.6,166.59,0.8174646]
[1717423051683,13.3251,166.6,166.59,0.8174646]
[1717423052069,13.6651,166.6,166.59,0.8174646]
[1717423052689,22.5486,166.6,166.59,0.8174646]
[1717423052880,88.8476,166.6,166.59,0.8174646]
[1717423053089,43.8476,166.6,166.59,0.8174646]
[1717423053471,88.8476,166.6,166.59,0.8174646]
[1717423054300,4.4429,166.56,166.44,6.544]
[1717423054508,0.34,166.55,166.44,6.544]
[1717423054685,2.2219,166.52,166.44,6.544]
[1717423055375,2.2221,166.51,166.44,6.544]
[1717423055782,4.7833,166.55,166.44,6.544]
[1717423055783,2.222,166.52,166.44,5.044]
[1717423055984,2.222,166.51,166.44,5.044]
[1717423056184,4.7833,166.55,166.44,5.044]
[1717423056387,2.222,166.52,166.44,5.044]
[1717423056702,7.82896723,166.59,166.45,0.17]
[1717423056870,7.82896723,166.59,166.47,15.3003]
[1717423057078,2.2214,166.56,166.48,0.34]
[1717423057320,2.2213,166.57,166.48,2.5624]
[1717423057798,6.6626,166.61,166.42,5.2637646]
[1717423058002,2.2214,166.56,166.46,2.2227]
[1717423058176,14.49301167,166.6,166.47,0.17]
[1717423058504,2.2213,166.57,166.47,2.3925]
[1717423058674,2.2215,166.56,166.47,8.4007]
[1717423058873,2.2215,166.56,166.48,0.34]
[1717423059301,2.2215,166.55,166.48,0.34]
[1717423059508,2.2215,166.55,166.47,6.1782]
[1717423060390,2.2217,166.54,166.47,6.1782]
[1717423060704,2.2219,166.53,166.47,6.1782]
[1717423060883,4.4425,166.57,166.47,6.1782]
[1717423060884,2.2216,166.54,166.47,6.1782]
[1717423061080,2.2218,166.53,166.47,6.1782]
[1717423061277,2.2218,166.53,166.42,0.8174646]
[1717423061487,2.2219,166.52,166.43,6.2152]
[1717423061895,2.2216,166.54,166.43,8.4383]
[1717423063282,2.2218,166.53,166.43,6.2152]
[1717423063791,2.2217,166.54,166.43,6.2152]
[1717423063992,2.2217,166.54,166.43,8.4382]
[1717423064178,2.2214,166.56,166.45,2.2228]
[1717423064375,15.7955,166.58,166.43,26.9552]
[1717423064574,60.65560193,166.6,166.43,26.9552]
[1717423064775,2.2211,166.58,166.47,2.2226]
[1717423065000,2.2211,166.58,166.48,0.34]
[1717423065208,8.5456,166.6,166.48,2.5624]
[1717423065458,2.221,166.59,166.49,6.602]
[1717423065734,2.2211,166.58,166.49,6.602]
[1717423065903,42.672,166.62,166.49,6.602]
[1717423066100,2.2214,166.56,166.49,6.602]
[1717423066419,2.2211,166.58,166.49,6.602]
[1717423066720,2.2213,166.57,166.49,6.602]
[1717423067022,2.2214,166.56,166.49,6.602]
[1717423067227,2.2213,166.57,166.49,6.602]
[1717423067904,2.2214,166.56,166.49,6.602]
[1717423068824,2.2215,166.55,166.45,6.5771]
[1717423069009,2.2214,166.56,166.45,8.7999]
[1717423069322,4.442,166.59,166.45,6.5771]
[1717423069518,0.34,166.58,166.45,6.5771]
[1717423069697,2.2217,166.54,166.45,6.5771]
[1717423070528,2.2215,166.55,166.45,8.7999]
[1717423070897,2.2218,166.54,166.45,6.5771]
[1717423071328,2.2215,166.55,166.45,6.5771]
[1717423071626,2.2216,166.54,166.45,6.5771]
[1717423071940,2.2218,166.53,166.45,6.5771]
[1717423072227,2.2217,166.54,166.45,6.5771]
[1717423073626,4.4426,166.57,166.45,6.5771]
[1717423073824,0.34,166.56,166.45,6.5771]
[1717423075510,2.2218,166.53,166.45,6.5771]
[1717423076705,0.34,166.56,166.45,6.5771]
[1717423076917,2.222,166.52,166.45,6.5771]
[1717423077527,0.34,166.56,166.45,6.5771]
[1717423077909,6.49588649,166.56,166.45,6.5771]
[1717423078134,2.2219,166.52,166.45,6.5771]
[1717423078632,40.4532,166.55,166.42,0.8174646]
[1717423078934,2.2221,166.51,166.42,0.8174646]
[1717423080029,2.2219,166.52,166.42,0.8174646]
[1717423080453,2.3918,166.54,166.44,2.223]
[1717423080744,6.15588649,166.56,166.43,0.34]
[1717423081143,6.4457,166.57,166.43,0.34]
[1717423081347,2.2218,166.53,166.42,21.5574646]
[1717423081533,2.2218,166.53,166.43,2.563]
[1717423081733,2.2216,166.55,166.43,0.34]
[1717423081926,2.2216,166.54,166.43,0.34]
[1717423082132,2.2216,166.54,166.44,2.2229]
[1717423082345,2.2218,166.53,166.43,2.5631]
[1717423083328,2.2216,166.54,166.44,2.2229]
[1717423083529,2.2216,166.54,166.43,0.34]
[1717423083530,2.2216,166.54,166.45,2.2228]
[1717423084171,2.2216,166.54,166.43,0.34]
[1717423084172,2.2216,166.54,166.44,2.2229]
[1717423084658,2.2218,166.53,166.44,2.2229]
[1717423085033,2.2217,166.54,166.44,2.2229]
[1717423085360,10.41315312,166.58,166.45,2.5628]
[1717423085531,0.34,166.57,166.45,2.5628]
[1717423085732,2.2217,166.54,166.45,2.5628]
[1717423086232,2.2215,166.55,166.45,2.5628]
[1717423086435,5.97085312,166.58,166.46,0.3207945]
[1717423086633,5.97085312,166.58,166.45,2.5628]
[1717423086634,2.2217,166.54,166.45,0.34]
[1717423086943,2.2218,166.53,166.44,2.223]
[1717423087144,2.2219,166.52,166.43,2.5631]
[1717423087339,2.2219,166.52,166.43,0.34]
[1717423087544,2.2219,166.52,166.43,2.2231]
[1717423087744,2.2218,166.53,166.43,2.2231]
[1717423088037,4.6126,166.57,166.43,2.2231]
[1717423088368,2.2218,166.53,166.43,2.2231]
[1717423089457,2.222,166.52,166.42,3.0406646]
[1717423089841,0.17,166.54,166.43,2.2231]
[1717423090044,0.17,166.54,166.42,0.8174646]
[1717423090230,2.2223,166.49,166.42,0.8174646]
[1717423090449,0.34,166.54,166.42,0.8174646]
[1717423090860,2.2221,166.51,166.42,0.8174646]
[1717423091043,2.2221,166.51,166.42,3.0406646]
[1717423091844,2.2219,166.53,166.43,2.2231]
[1717423092078,0.34,166.54,166.43,2.2231]
[1717423092375,2.2219,166.52,166.42,23.7806646]
[1717423092734,2.2219,166.52,166.42,3.0406646]
[1717423092934,2.2219,166.52,166.42,0.8174646]
[1717423093133,2.2219,166.52,166.43,2.2231]
[1717423093739,2.2219,166.52,166.42,3.0406646]
[1717423093955,2.222,166.51,166.42,3.0406646]
[1717423094257,2.2219,166.52,166.43,2.5631]
[1717423094637,2.2218,166.53,166.43,2.5631]
[1717423094837,2.2219,166.52,166.43,0.34]
[1717423095039,15.3800184,166.56,166.43,0.34]
[1717423095040,2.2218,166.53,166.43,0.34]
[1717423095246,2.2216,166.54,166.44,20.74]
[1717423095462,2.2216,166.54,166.45,0.34]
[1717423095947,2.2216,166.54,166.49,6.93]
[1717423096577,4.77998922,166.56,166.49,6.93]
[1717423096880,13.08704666,166.6,166.48,27.72]
[1717423097050,6.93,166.57,166.51,6.93]
[1717423097246,2.2215,166.55,166.46,2.2227]
[1717423097554,2.2217,166.54,166.45,0.34]
[1717423097755,2.2215,166.55,166.49,6.93]
[1717423098350,2.2217,166.54,166.49,6.93]
[1717423098647,2.2217,166.54,166.45,2.5628]
[1717423098648,2.2217,166.54,166.48,6.93]
[1717423099447,2.2217,166.54,166.42,0.8174646]
[1717423099448,4.4434,166.54,166.42,0.8174646]
[1717423099651,0.34,166.53,166.44,6.93]
[1717423099870,2.2222,166.5,166.45,6.93]
[1717423100093,0.34,166.53,166.45,6.93]